[Event "Early-Titled-Tuesday-Blitz-March-12-2024"]
[Site "Chess.com"]
[Date "2024.03.12"]
[Round "7"]
[White "alexrustemov"]
[Black "Alex_Banzea"]
[Result "1-0"]
[WhiteElo "2863"]
[BlackElo "2637"]
[TimeControl "180+1"]
[EndTime "9:13:49 PDT"]
[Termination "alexrustemov won by resignation"]

1. d4 {[%clk 0:03:00.9]} 1... Nf6 {[%clk 0:02:58.8]} 2. c4 {[%clk 0:03:01.4]}
2... g6 {[%clk 0:02:58.7]} 3. g3 {[%clk 0:03:00.9]} 3... Bg7 {[%clk 0:02:59.2]}
4. Bg2 {[%clk 0:03:01.4]} 4... O-O {[%clk 0:02:59.7]} 5. Nf3 {[%clk 0:03:01.7]}
5... d6 {[%clk 0:02:54.3]} 6. Nc3 {[%clk 0:03:00.3]} 6... Nc6 {[%clk 0:02:53.8]}
7. O-O {[%clk 0:02:58.2]} 7... e5 {[%clk 0:02:51.9]} 8. h3 {[%clk 0:02:57.1]}
8... exd4 {[%clk 0:02:47.1]} 9. Nxd4 {[%clk 0:02:54.9]} 9... Nxd4 {[%clk
0:02:48]} 10. Qxd4 {[%clk 0:02:53.5]} 10... Re8 {[%clk 0:02:48.9]} 11. Qh4
{[%clk 0:02:04.3]} 11... Be6 {[%clk 0:02:38.9]} 12. Bg5 {[%clk 0:01:55.8]} 12...
h6 {[%clk 0:02:21.2]} 13. Bxh6 {[%clk 0:01:54.1]} 13... Bxh6 {[%clk 0:02:22.1]}
14. Qxh6 {[%clk 0:01:53.9]} 14... Bxc4 {[%clk 0:02:22.6]} 15. Qd2 {[%clk
0:01:39.5]} 15... Ba6 {[%clk 0:02:02.5]} 16. Rfe1 {[%clk 0:01:34.9]} 16... Qe7
{[%clk 0:01:58.1]} 17. Rad1 {[%clk 0:01:33.7]} 17... Qe5 {[%clk 0:01:54.2]} 18.
e4 {[%clk 0:01:32]} 18... Rad8 {[%clk 0:01:30.5]} 19. f4 {[%clk 0:01:32.2]}
19... Qc5+ {[%clk 0:01:30.4]} 20. Qf2 {[%clk 0:01:30.1]} 20... Qxf2+ {[%clk
0:01:28.7]} 21. Kxf2 {[%clk 0:01:30.1]} 21... Bc4 {[%clk 0:01:22.1]} 22. b3
{[%clk 0:01:28.8]} 22... Be6 {[%clk 0:01:22]} 23. g4 {[%clk 0:01:29.4]} 23... c6
{[%clk 0:01:16.8]} 24. Rd2 {[%clk 0:01:25.9]} 24... d5 {[%clk 0:01:16.6]} 25.
Red1 {[%clk 0:01:24.7]} 25... Rc8 {[%clk 0:01:16.5]} 26. exd5 {[%clk 0:01:23.2]}
26... Nxd5 {[%clk 0:01:15.5]} 27. Nxd5 {[%clk 0:01:23.4]} 27... Bxd5 {[%clk
0:01:15.5]} 28. Bxd5 {[%clk 0:01:24]} 28... cxd5 {[%clk 0:01:16.4]} 29. Rxd5
{[%clk 0:01:24.2]} 29... Rc2+ {[%clk 0:01:16.7]} 30. R1d2 {[%clk 0:01:24.5]}
30... Rxa2 {[%clk 0:01:17.6]} 31. Rxa2 {[%clk 0:01:23.9]} 1-0

[Event "Early-Titled-Tuesday-Blitz-March-12-2024"]
[Site "Chess.com"]
[Date "2024.03.12"]
[Round "7"]
[White "djano"]
[Black "RobertoJBM"]
[Result "0-1"]
[WhiteElo "2582"]
[BlackElo "2824"]
[TimeControl "180+1"]
[EndTime "9:14:07 PDT"]
[Termination "RobertoJBM won by resignation"]

1. e4 {[%clk 0:03:00.2]} 1... c6 {[%clk 0:02:59.4]} 2. d4 {[%clk 0:02:59.9]}
2... d5 {[%clk 0:03:00.3]} 3. exd5 {[%clk 0:03:00]} 3... cxd5 {[%clk 0:03:00.5]}
4. Bd3 {[%clk 0:03:00.5]} 4... Nc6 {[%clk 0:03:00.5]} 5. c3 {[%clk 0:03:00.6]}
5... Nf6 {[%clk 0:03:01.1]} 6. Bf4 {[%clk 0:03:00.8]} 6... Bg4 {[%clk
0:03:00.9]} 7. Qb3 {[%clk 0:03:01.1]} 7... Qd7 {[%clk 0:03:01.3]} 8. Nd2 {[%clk
0:03:01]} 8... e6 {[%clk 0:03:01.9]} 9. Ngf3 {[%clk 0:03:01.1]} 9... Bd6 {[%clk
0:03:02.4]} 10. Bxd6 {[%clk 0:03:00.9]} 10... Qxd6 {[%clk 0:03:03.3]} 11. O-O
{[%clk 0:03:01.4]} 11... O-O {[%clk 0:03:03]} 12. Rae1 {[%clk 0:03:01.2]} 12...
Bxf3 {[%clk 0:03:03.3]} 13. Nxf3 {[%clk 0:03:01.1]} 13... Rab8 {[%clk 0:03:04]}
14. Qc2 {[%clk 0:02:58.5]} 14... Rfc8 {[%clk 0:03:02.4]} 15. Qe2 {[%clk
0:02:56]} 15... Nd7 {[%clk 0:02:57.4]} 16. Ne5 {[%clk 0:02:46.8]} 16... Nf8
{[%clk 0:02:53.4]} 17. f4 {[%clk 0:02:46.5]} 17... g6 {[%clk 0:02:52.1]} 18. g4
{[%clk 0:02:37.5]} 18... Re8 {[%clk 0:02:50.6]} 19. Rf3 {[%clk 0:02:17.8]} 19...
f6 {[%clk 0:02:46]} 20. Nxc6 {[%clk 0:02:14.4]} 20... bxc6 {[%clk 0:02:46.9]}
21. Qf2 {[%clk 0:02:03.2]} 21... Rb7 {[%clk 0:02:31.8]} 22. h4 {[%clk
0:02:01.9]} 22... Rf7 {[%clk 0:02:23]} 23. Kg2 {[%clk 0:01:57.3]} 23... Qd7
{[%clk 0:02:12.4]} 24. Qg3 {[%clk 0:01:52.8]} 24... Qd6 {[%clk 0:02:10.9]} 25.
Re2 {[%clk 0:01:52.6]} 25... c5 {[%clk 0:02:10.8]} 26. Qf2 {[%clk 0:01:44]}
26... cxd4 {[%clk 0:02:10.1]} 27. Qxd4 {[%clk 0:01:44.9]} 27... e5 {[%clk
0:02:06.4]} 28. Qf2 {[%clk 0:01:27.8]} 28... e4 {[%clk 0:02:04.9]} 29. Rg3
{[%clk 0:01:25]} 29... Ne6 {[%clk 0:01:54.4]} 30. Bc2 {[%clk 0:01:11]} 30...
Nxf4+ {[%clk 0:01:51.8]} 31. Kh2 {[%clk 0:01:10.8]} 31... Nxe2 {[%clk 0:01:50]}
32. Qxe2 {[%clk 0:01:11.7]} 32... f5 {[%clk 0:01:48.5]} 33. gxf5 {[%clk
0:01:10.1]} 33... Rxf5 {[%clk 0:01:48.4]} 34. Kh3 {[%clk 0:01:07]} 34... Ref8
{[%clk 0:01:45.3]} 35. Bb3 {[%clk 0:01:05.9]} 35... Rf3 {[%clk 0:01:42.9]} 0-1

[Event "Early-Titled-Tuesday-Blitz-March-12-2024"]
[Site "Chess.com"]
[Date "2024.03.12"]
[Round "7"]
[White "Eloist"]
[Black "BeardedNM"]
[Result "1-0"]
[WhiteElo "2430"]
[BlackElo "2236"]
[TimeControl "180+1"]
[EndTime "9:14:07 PDT"]
[Termination "Eloist won by checkmate"]

1. e4 {[%clk 0:03:00.9]} 1... e6 {[%clk 0:03:00.3]} 2. d4 {[%clk 0:03:00.3]}
2... d5 {[%clk 0:03:00.9]} 3. Nd2 {[%clk 0:03:00.5]} 3... Be7 {[%clk 0:03:00.6]}
4. Ngf3 {[%clk 0:02:58.1]} 4... Nf6 {[%clk 0:03:00.7]} 5. e5 {[%clk 0:02:56.5]}
5... Nfd7 {[%clk 0:03:01.3]} 6. Bd3 {[%clk 0:02:55.4]} 6... c5 {[%clk
0:03:01.9]} 7. c3 {[%clk 0:02:55.2]} 7... Nc6 {[%clk 0:03:02.5]} 8. Nf1 {[%clk
0:02:35.8]} 8... cxd4 {[%clk 0:02:46.6]} 9. cxd4 {[%clk 0:02:35.2]} 9... Qb6
{[%clk 0:02:45.4]} 10. Be2 {[%clk 0:02:23.2]} 10... Bb4+ {[%clk 0:02:40.6]} 11.
Bd2 {[%clk 0:02:21.8]} 11... Nxd4 {[%clk 0:02:40.2]} 12. Nxd4 {[%clk 0:02:16.3]}
12... Qxd4 {[%clk 0:02:39.5]} 13. Bxb4 {[%clk 0:02:04]} 13... Qxb4+ {[%clk
0:02:35.9]} 14. Nd2 {[%clk 0:02:03.9]} 14... Nxe5 {[%clk 0:02:30.3]} 15. O-O
{[%clk 0:02:03.9]} 15... O-O {[%clk 0:02:26.4]} 16. Qc2 {[%clk 0:02:03]} 16...
Bd7 {[%clk 0:02:13.5]} 17. a3 {[%clk 0:01:59.5]} 17... Qb6 {[%clk 0:02:08.3]}
18. Qc3 {[%clk 0:01:55.4]} 18... Ng6 {[%clk 0:02:00.6]} 19. Qg3 {[%clk
0:01:51.1]} 19... Rac8 {[%clk 0:01:50.1]} 20. Bd3 {[%clk 0:01:48.6]} 20... Qxb2
{[%clk 0:01:40]} 21. Nf3 {[%clk 0:01:43.2]} 21... Ba4 {[%clk 0:01:20.8]} 22.
Bxg6 {[%clk 0:01:38.5]} 22... hxg6 {[%clk 0:01:17.8]} 23. Ng5 {[%clk 0:01:30.4]}
23... Rc3 {[%clk 0:00:57.5]} 24. Qh4 {[%clk 0:01:29.7]} 24... Rfc8 {[%clk
0:00:57.6]} 25. Qxa4 {[%clk 0:01:21.8]} 25... Rc1 {[%clk 0:00:54.9]} 26. Raxc1
{[%clk 0:01:16.8]} 26... Rxc1 {[%clk 0:00:53.4]} 27. Qe8# {[%clk 0:01:16.5]} 1-0

[Event "Early-Titled-Tuesday-Blitz-March-12-2024"]
[Site "Chess.com"]
[Date "2024.03.12"]
[Round "7"]
[White "IwkooO"]
[Black "Boorchess"]
[Result "1-0"]
[WhiteElo "2681"]
[BlackElo "2534"]
[TimeControl "180+1"]
[EndTime "9:14:26 PDT"]
[Termination "IwkooO won by resignation"]

1. e4 {[%clk 0:03:00.9]} 1... e5 {[%clk 0:02:59.6]} 2. Nf3 {[%clk 0:03:00.5]}
2... Nf6 {[%clk 0:02:59.3]} 3. d3 {[%clk 0:02:56.5]} 3... Nc6 {[%clk 0:02:58.6]}
4. Bg5 {[%clk 0:02:56.6]} 4... h6 {[%clk 0:02:57.6]} 5. Bh4 {[%clk 0:02:57]}
5... Bc5 {[%clk 0:02:56.5]} 6. Nbd2 {[%clk 0:02:56]} 6... d6 {[%clk 0:02:56.3]}
7. c3 {[%clk 0:02:54.5]} 7... a6 {[%clk 0:02:53.3]} 8. Be2 {[%clk 0:02:55.1]}
8... g5 {[%clk 0:02:52.5]} 9. Bg3 {[%clk 0:02:54.9]} 9... Ba7 {[%clk 0:02:47.9]}
10. Nc4 {[%clk 0:02:52.7]} 10... Be6 {[%clk 0:02:41.3]} 11. Ne3 {[%clk
0:02:50.6]} 11... Qd7 {[%clk 0:02:34.2]} 12. h3 {[%clk 0:02:48.3]} 12... Rg8
{[%clk 0:02:18.3]} 13. Nd2 {[%clk 0:02:39]} 13... d5 {[%clk 0:02:03]} 14. exd5
{[%clk 0:02:34.3]} 14... Nxd5 {[%clk 0:02:02.3]} 15. Nxd5 {[%clk 0:02:34]} 15...
Bxd5 {[%clk 0:02:01.9]} 16. Ne4 {[%clk 0:02:32.7]} 16... Qe7 {[%clk 0:01:47.2]}
17. Bg4 {[%clk 0:02:31.9]} 17... h5 {[%clk 0:01:40.8]} 18. Bxh5 {[%clk
0:02:27.4]} 18... O-O-O {[%clk 0:01:39.6]} 19. Qf3 {[%clk 0:02:23.8]} 19... f5
{[%clk 0:01:25.2]} 20. Qxf5+ {[%clk 0:02:23.6]} 20... Kb8 {[%clk 0:01:25.2]} 21.
Qf3 {[%clk 0:02:20.3]} 21... Rdf8 {[%clk 0:01:20.7]} 22. Qe2 {[%clk 0:02:06.9]}
22... Nd8 {[%clk 0:01:09.2]} 23. Bg4 {[%clk 0:01:54.9]} 23... Ne6 {[%clk
0:01:08.2]} 24. Bxe6 {[%clk 0:01:53.1]} 24... Qxe6 {[%clk 0:01:08]} 25. f3
{[%clk 0:01:51.3]} 25... Bxa2 {[%clk 0:00:55.6]} 26. c4 {[%clk 0:01:49.3]} 26...
Bb3 {[%clk 0:00:50.3]} 27. Ra3 {[%clk 0:01:48.9]} 27... Qb6 {[%clk 0:00:40.5]}
28. Bf2 {[%clk 0:01:47.1]} 28... Qb4+ {[%clk 0:00:34.7]} 29. Qd2 {[%clk
0:01:43.2]} 29... Bxf2+ {[%clk 0:00:29.4]} 30. Kxf2 {[%clk 0:01:44.1]} 30...
Qxd2+ {[%clk 0:00:22.9]} 31. Nxd2 {[%clk 0:01:43.8]} 31... Bc2 {[%clk
0:00:19.9]} 32. Rc1 {[%clk 0:01:44.4]} 1-0

[Event "Early-Titled-Tuesday-Blitz-March-12-2024"]
[Site "Chess.com"]
[Date "2024.03.12"]
[Round "7"]
[White "Valio_M1948"]
[Black "only_strong_moves"]
[Result "0-1"]
[WhiteElo "2403"]
[BlackElo "2536"]
[TimeControl "180+1"]
[EndTime "9:14:27 PDT"]
[Termination "only_strong_moves won by checkmate"]

1. d4 {[%clk 0:03:00.9]} 1... Nf6 {[%clk 0:02:56.1]} 2. Bg5 {[%clk 0:03:01.3]}
2... Ne4 {[%clk 0:02:52.9]} 3. Bf4 {[%clk 0:03:01.5]} 3... d5 {[%clk 0:02:52.2]}
4. e3 {[%clk 0:03:01.6]} 4... c5 {[%clk 0:02:51.9]} 5. Bd3 {[%clk 0:03:01.7]}
5... cxd4 {[%clk 0:02:51.1]} 6. Bxe4 {[%clk 0:03:01.9]} 6... dxe4 {[%clk
0:02:51]} 7. exd4 {[%clk 0:03:02.8]} 7... g6 {[%clk 0:02:48.1]} 8. Ne2 {[%clk
0:02:58.8]} 8... Bg7 {[%clk 0:02:48.1]} 9. O-O {[%clk 0:02:54]} 9... O-O {[%clk
0:02:44.4]} 10. Nbc3 {[%clk 0:02:53.8]} 10... Nc6 {[%clk 0:02:43.4]} 11. d5
{[%clk 0:02:53.9]} 11... Nb4 {[%clk 0:02:40]} 12. a3 {[%clk 0:02:51.2]} 12...
Na6 {[%clk 0:02:40.3]} 13. Nxe4 {[%clk 0:02:48.7]} 13... Bxb2 {[%clk 0:02:40.8]}
14. Bh6 {[%clk 0:02:44.1]} 14... Bxa1 {[%clk 0:02:34.1]} 15. Qxa1 {[%clk
0:02:45]} 15... f6 {[%clk 0:02:34.2]} 16. Bxf8 {[%clk 0:02:43.9]} 16... Kxf8
{[%clk 0:02:35.1]} 17. d6 {[%clk 0:02:43.8]} 17... e5 {[%clk 0:02:32.7]} 18. f4
{[%clk 0:02:38.2]} 18... Bf5 {[%clk 0:02:21.8]} 19. fxe5 {[%clk 0:01:55.3]}
19... Bxe4 {[%clk 0:02:17.7]} 20. Rxf6+ {[%clk 0:01:51.5]} 20... Kg7 {[%clk
0:02:13.6]} 21. Nd4 {[%clk 0:01:34]} 21... Bd5 {[%clk 0:02:04.3]} 22. Rf2 {[%clk
0:01:03.2]} 22... Kg8 {[%clk 0:01:58.1]} 23. Qf1 {[%clk 0:00:48.1]} 23... Nc5
{[%clk 0:01:52.1]} 24. c4 {[%clk 0:00:47.1]} 24... Be4 {[%clk 0:01:41.9]} 25.
Rf7 {[%clk 0:00:29.9]} 25... Qg5 {[%clk 0:01:36]} 26. Qf4 {[%clk 0:00:13]} 26...
Qxg2# {[%clk 0:01:34.6]} 0-1

[Event "Early-Titled-Tuesday-Blitz-March-12-2024"]
[Site "Chess.com"]
[Date "2024.03.12"]
[Round "7"]
[White "Kirill_Klukin"]
[Black "Smoking_Crow"]
[Result "1-0"]
[WhiteElo "2809"]
[BlackElo "2575"]
[TimeControl "180+1"]
[EndTime "9:14:28 PDT"]
[Termination "Kirill_Klukin won by resignation"]

1. e4 {[%clk 0:02:59.2]} 1... e5 {[%clk 0:02:57.4]} 2. Nf3 {[%clk 0:02:59.3]}
2... Nc6 {[%clk 0:02:58.1]} 3. Bc4 {[%clk 0:02:59.3]} 3... Nf6 {[%clk
0:02:58.4]} 4. O-O {[%clk 0:02:47.6]} 4... Nxe4 {[%clk 0:02:56]} 5. Re1 {[%clk
0:02:37.8]} 5... Nd6 {[%clk 0:02:51.5]} 6. Bd5 {[%clk 0:02:27.9]} 6... Be7
{[%clk 0:02:50.9]} 7. Bxc6 {[%clk 0:02:24.1]} 7... dxc6 {[%clk 0:02:51]} 8. Nxe5
{[%clk 0:02:24.8]} 8... O-O {[%clk 0:02:50.8]} 9. d4 {[%clk 0:02:24.8]} 9... Be6
{[%clk 0:02:50.4]} 10. c3 {[%clk 0:02:24.3]} 10... Re8 {[%clk 0:02:50.4]} 11.
Nd2 {[%clk 0:02:24.2]} 11... Bf8 {[%clk 0:02:50.5]} 12. Ndf3 {[%clk 0:02:24.4]}
12... f6 {[%clk 0:02:49.9]} 13. Nd3 {[%clk 0:02:24.2]} 13... Qd7 {[%clk
0:02:49.6]} 14. Nc5 {[%clk 0:02:24]} 14... Qf7 {[%clk 0:02:47.3]} 15. Nxe6
{[%clk 0:02:19.7]} 15... Rxe6 {[%clk 0:02:47.3]} 16. Bf4 {[%clk 0:02:20.4]}
16... Rae8 {[%clk 0:02:43.8]} 17. Rxe6 {[%clk 0:02:19.7]} 17... Qxe6 {[%clk
0:02:43.8]} 18. h3 {[%clk 0:02:19.7]} 18... Qe4 {[%clk 0:02:38.4]} 19. Bxd6
{[%clk 0:02:16.9]} 19... cxd6 {[%clk 0:02:37.6]} 20. Qb3+ {[%clk 0:02:17.1]}
20... d5 {[%clk 0:02:35.8]} 21. Re1 {[%clk 0:02:14.9]} 21... Qg6 {[%clk
0:02:35]} 22. Rxe8 {[%clk 0:02:14.4]} 22... Qxe8 {[%clk 0:02:35.9]} 23. Qxb7
{[%clk 0:02:15.1]} 23... a5 {[%clk 0:02:33]} 24. a4 {[%clk 0:02:12.2]} 24... Bd6
{[%clk 0:02:28.4]} 25. g3 {[%clk 0:02:10.3]} 25... Qe2 {[%clk 0:02:25.8]} 26.
Kg2 {[%clk 0:02:10.6]} 26... Qc4 {[%clk 0:02:20.6]} 27. Qc8+ {[%clk 0:01:56.8]}
27... Kf7 {[%clk 0:02:08.5]} 28. Qd7+ {[%clk 0:01:56.9]} 28... Be7 {[%clk
0:02:08.3]} 29. Qf5 {[%clk 0:01:57]} 29... Kg8 {[%clk 0:01:56.8]} 30. Nh4 {[%clk
0:01:34.8]} 30... g6 {[%clk 0:01:35.8]} 31. Qc8+ {[%clk 0:01:34.5]} 31... Kf7
{[%clk 0:01:35.3]} 32. Qh8 {[%clk 0:01:34.8]} 32... Qxa4 {[%clk 0:01:34.2]} 33.
Qxh7+ {[%clk 0:01:34.9]} 33... Ke6 {[%clk 0:01:34]} 34. Nxg6 {[%clk 0:01:34.6]}
34... Bd6 {[%clk 0:01:34.2]} 35. Qg8+ {[%clk 0:01:34.1]} 35... Kd7 {[%clk
0:01:34.6]} 36. Qf7+ {[%clk 0:01:33.7]} 36... Kc8 {[%clk 0:01:34.6]} 37. Qxf6
{[%clk 0:01:34.2]} 37... Kc7 {[%clk 0:01:35.2]} 38. h4 {[%clk 0:01:32.9]} 38...
Qb3 {[%clk 0:01:35.1]} 39. h5 {[%clk 0:01:33.2]} 39... Qxb2 {[%clk 0:01:35.7]}
40. h6 {[%clk 0:01:32.5]} 40... Bxg3 {[%clk 0:01:32.2]} 41. Kxg3 {[%clk
0:01:28.1]} 41... Qxc3+ {[%clk 0:01:32.3]} 42. Kg2 {[%clk 0:01:26.3]} 42... Qd3
{[%clk 0:01:24]} 43. h7 {[%clk 0:01:21.4]} 43... Qe4+ {[%clk 0:01:24]} 44. Kh2
{[%clk 0:01:21.1]} 1-0

[Event "Early-Titled-Tuesday-Blitz-March-12-2024"]
[Site "Chess.com"]
[Date "2024.03.12"]
[Round "7"]
[White "scrambleyourbrain"]
[Black "VojtechPlat"]
[Result "0-1"]
[WhiteElo "2402"]
[BlackElo "2872"]
[TimeControl "180+1"]
[EndTime "9:14:31 PDT"]
[Termination "VojtechPlat won by resignation"]

1. e4 {[%clk 0:03:00.9]} 1... c5 {[%clk 0:02:59.3]} 2. Nf3 {[%clk 0:03:00.6]}
2... Nc6 {[%clk 0:02:59.9]} 3. d4 {[%clk 0:03:01.2]} 3... cxd4 {[%clk
0:03:00.2]} 4. Nxd4 {[%clk 0:03:01.9]} 4... e5 {[%clk 0:03:00.4]} 5. Nb5 {[%clk
0:03:01.4]} 5... a6 {[%clk 0:03:00.9]} 6. Nd6+ {[%clk 0:03:00.5]} 6... Bxd6
{[%clk 0:03:01.5]} 7. Qxd6 {[%clk 0:03:01.1]} 7... Qf6 {[%clk 0:03:02.3]} 8. Qd1
{[%clk 0:02:56.8]} 8... Qg6 {[%clk 0:03:02.1]} 9. Nc3 {[%clk 0:02:53.7]} 9... d5
{[%clk 0:03:01.9]} 10. Nxd5 {[%clk 0:02:48.3]} 10... Qxe4+ {[%clk 0:03:01.1]}
11. Be3 {[%clk 0:02:46.8]} 11... Nd4 {[%clk 0:03:00.6]} 12. Nc7+ {[%clk
0:02:41.3]} 12... Ke7 {[%clk 0:03:00]} 13. Bd3 {[%clk 0:02:12.7]} 13... Qxg2
{[%clk 0:02:57.7]} 14. Bxd4 {[%clk 0:02:10.6]} 14... Qxh1+ {[%clk 0:02:49.8]}
15. Kd2 {[%clk 0:02:10.6]} 15... Qxd1+ {[%clk 0:02:49.4]} 16. Rxd1 {[%clk
0:02:10.5]} 16... exd4 {[%clk 0:02:49.5]} 17. Nxa8 {[%clk 0:02:10.5]} 17... Nf6
{[%clk 0:02:49.4]} 18. Nb6 {[%clk 0:02:09.4]} 18... Be6 {[%clk 0:02:49.5]} 19.
Re1 {[%clk 0:02:08]} 19... Kd6 {[%clk 0:02:47.9]} 20. f4 {[%clk 0:02:03.5]}
20... g6 {[%clk 0:02:41.7]} 21. Bc4 {[%clk 0:01:58.9]} 21... Re8 {[%clk
0:02:38.5]} 22. Bxe6 {[%clk 0:01:57.9]} 22... Rxe6 {[%clk 0:02:38.5]} 23. Nc4+
{[%clk 0:01:58.1]} 23... Kd5 {[%clk 0:02:38.8]} 24. Ne5 {[%clk 0:01:58.3]} 24...
Ne4+ {[%clk 0:02:36.7]} 25. Kd3 {[%clk 0:01:54.9]} 25... Nc5+ {[%clk 0:02:36.5]}
26. Kd2 {[%clk 0:01:54.9]} 26... f6 {[%clk 0:02:36.8]} 27. Ng4 {[%clk
0:01:41.1]} 27... Rxe1 {[%clk 0:02:36.6]} 28. Kxe1 {[%clk 0:01:41]} 28... Nd7
{[%clk 0:02:28]} 29. Nf2 {[%clk 0:01:39.6]} 29... Ke6 {[%clk 0:02:26.3]} 30. Ke2
{[%clk 0:01:39.5]} 30... Kf5 {[%clk 0:02:26.7]} 31. Kf3 {[%clk 0:01:39.7]} 31...
Nc5 {[%clk 0:02:26]} 32. b4 {[%clk 0:01:23.6]} 32... Na4 {[%clk 0:02:18.5]} 33.
Ne4 {[%clk 0:01:19.6]} 33... Ke6 {[%clk 0:02:18.2]} 34. a3 {[%clk 0:01:17.3]}
34... h6 {[%clk 0:02:15.8]} 35. h4 {[%clk 0:01:09.2]} 35... f5 {[%clk
0:02:15.4]} 36. Nd2 {[%clk 0:01:05.9]} 36... Kd5 {[%clk 0:02:15.1]} 37. Kg3
{[%clk 0:00:59.5]} 37... Nc3 {[%clk 0:02:14.3]} 38. h5 {[%clk 0:00:52.2]} 38...
gxh5 {[%clk 0:02:13]} 39. Kh4 {[%clk 0:00:51.9]} 39... Ne2 {[%clk 0:02:12.8]}
40. Kxh5 {[%clk 0:00:49.6]} 40... Nxf4+ {[%clk 0:02:12.9]} 41. Kxh6 {[%clk
0:00:50.1]} 41... Ng2 {[%clk 0:02:10.1]} 42. Kg5 {[%clk 0:00:49.1]} 42... Ne3
{[%clk 0:02:09.8]} 43. Kf4 {[%clk 0:00:46.5]} 43... Nxc2 {[%clk 0:02:09.8]} 44.
Kxf5 {[%clk 0:00:44.1]} 44... Nxa3 {[%clk 0:02:10.2]} 45. Kf4 {[%clk 0:00:43.6]}
45... Nc2 {[%clk 0:02:10.1]} 46. Kf3 {[%clk 0:00:43.9]} 46... Nxb4 {[%clk
0:02:10.1]} 47. Ke2 {[%clk 0:00:44.6]} 47... a5 {[%clk 0:02:09.2]} 48. Kd1
{[%clk 0:00:44.9]} 48... a4 {[%clk 0:02:09]} 49. Kc1 {[%clk 0:00:45.6]} 49... b5
{[%clk 0:02:09.4]} 50. Kb1 {[%clk 0:00:46.2]} 50... Nd3 {[%clk 0:02:08.3]} 51.
Kc2 {[%clk 0:00:45.6]} 51... Ne5 {[%clk 0:02:08.6]} 52. Kb2 {[%clk 0:00:45.9]}
52... Nc4+ {[%clk 0:02:08.5]} 53. Kc2 {[%clk 0:00:45.7]} 53... Nxd2 {[%clk
0:02:08.4]} 54. Kxd2 {[%clk 0:00:46.6]} 0-1

[Event "Early-Titled-Tuesday-Blitz-March-12-2024"]
[Site "Chess.com"]
[Date "2024.03.12"]
[Round "7"]
[White "mishanick"]
[Black "KuzubovYuriy"]
[Result "1-0"]
[WhiteElo "3104"]
[BlackElo "2919"]
[TimeControl "180+1"]
[EndTime "9:14:32 PDT"]
[Termination "mishanick won by resignation"]

1. d4 {[%clk 0:02:51.8]} 1... d5 {[%clk 0:02:58.6]} 2. c4 {[%clk 0:02:52.4]}
2... e6 {[%clk 0:02:59]} 3. Nc3 {[%clk 0:02:53.2]} 3... a6 {[%clk 0:02:59.6]} 4.
cxd5 {[%clk 0:02:48.7]} 4... exd5 {[%clk 0:03:00.5]} 5. Bf4 {[%clk 0:02:49.1]}
5... Nf6 {[%clk 0:02:59]} 6. e3 {[%clk 0:02:49.5]} 6... Bd6 {[%clk 0:02:58.6]}
7. Bxd6 {[%clk 0:02:49.4]} 7... Qxd6 {[%clk 0:02:58.6]} 8. Bd3 {[%clk
0:02:50.1]} 8... O-O {[%clk 0:02:56.6]} 9. h3 {[%clk 0:02:50.4]} 9... Re8 {[%clk
0:02:52.9]} 10. Qc2 {[%clk 0:02:50.3]} 10... Nc6 {[%clk 0:02:46.7]} 11. Nf3
{[%clk 0:02:50]} 11... Nb4 {[%clk 0:02:46.1]} 12. Qb1 {[%clk 0:02:50.4]} 12...
b6 {[%clk 0:02:35.8]} 13. O-O {[%clk 0:02:46.4]} 13... Nxd3 {[%clk 0:02:26.2]}
14. Qxd3 {[%clk 0:02:47.3]} 14... g6 {[%clk 0:02:26.7]} 15. Rac1 {[%clk
0:02:44.9]} 15... Bf5 {[%clk 0:02:07]} 16. Qd1 {[%clk 0:02:45.2]} 16... Rad8
{[%clk 0:02:03.2]} 17. Qa4 {[%clk 0:02:43.4]} 17... Bc8 {[%clk 0:01:59.5]} 18.
Rc2 {[%clk 0:02:39.1]} 18... Re7 {[%clk 0:01:58.3]} 19. Rfc1 {[%clk 0:02:38.7]}
19... Bf5 {[%clk 0:01:51]} 20. Rd2 {[%clk 0:02:36.2]} 20... Bc8 {[%clk
0:01:40.4]} 21. Ne2 {[%clk 0:02:27.6]} 21... Bb7 {[%clk 0:01:36.3]} 22. Rdc2
{[%clk 0:02:26.4]} 22... Ne4 {[%clk 0:01:34.5]} 23. Nc3 {[%clk 0:02:26.6]} 23...
Nf6 {[%clk 0:01:24.4]} 24. b4 {[%clk 0:02:26.3]} 24... Kg7 {[%clk 0:01:21.9]}
25. a3 {[%clk 0:02:26.5]} 25... Ng8 {[%clk 0:01:14.1]} 26. Ne2 {[%clk
0:02:26.4]} 26... h6 {[%clk 0:01:09.5]} 27. Nf4 {[%clk 0:02:26.6]} 27... f6
{[%clk 0:01:00.5]} 28. Nh4 {[%clk 0:02:18.7]} 28... Kh7 {[%clk 0:00:31]} 29.
Nfxg6 {[%clk 0:02:11.7]} 29... Rf7 {[%clk 0:00:19.8]} 30. Nf5 {[%clk 0:02:02.5]}
30... Qe6 {[%clk 0:00:16.6]} 31. Ngh4 {[%clk 0:02:01.6]} 31... c6 {[%clk
0:00:15]} 32. Rc3 {[%clk 0:01:59.3]} 32... h5 {[%clk 0:00:14.5]} 33. Qc2 {[%clk
0:01:59.8]} 33... Qe4 {[%clk 0:00:13.9]} 34. Qd1 {[%clk 0:01:55.2]} 1-0

[Event "Early-Titled-Tuesday-Blitz-March-12-2024"]
[Site "Chess.com"]
[Date "2024.03.12"]
[Round "7"]
[White "Aygehovit1992"]
[Black "Msb2"]
[Result "0-1"]
[WhiteElo "2724"]
[BlackElo "2999"]
[TimeControl "180+1"]
[EndTime "9:14:32 PDT"]
[Termination "Msb2 won by resignation"]

1. e4 {[%clk 0:02:58.2]} 1... e6 {[%clk 0:03:00.3]} 2. d4 {[%clk 0:02:58.3]}
2... d5 {[%clk 0:03:00.9]} 3. Nc3 {[%clk 0:02:59.1]} 3... Nf6 {[%clk 0:03:01.2]}
4. e5 {[%clk 0:02:56.9]} 4... Nfd7 {[%clk 0:03:01.6]} 5. f4 {[%clk 0:02:57.6]}
5... c5 {[%clk 0:03:02.4]} 6. Nf3 {[%clk 0:02:58.5]} 6... Nc6 {[%clk 0:03:03.1]}
7. Be3 {[%clk 0:02:58.6]} 7... a6 {[%clk 0:03:03.9]} 8. Nd2 {[%clk 0:02:58.7]}
8... cxd4 {[%clk 0:03:03.9]} 9. Nxd5 {[%clk 0:02:55.6]} 9... dxe3 {[%clk
0:02:59.8]} 10. Nxe3 {[%clk 0:02:56.5]} 10... Bc5 {[%clk 0:02:57.8]} 11. Nec4
{[%clk 0:02:56.5]} 11... O-O {[%clk 0:02:55]} 12. Ne4 {[%clk 0:02:56.6]} 12...
b5 {[%clk 0:02:48.2]} 13. Ncd6 {[%clk 0:02:54.3]} 13... Ne7 {[%clk 0:02:27.9]}
14. Bd3 {[%clk 0:02:47.5]} 14... Nf5 {[%clk 0:02:24.3]} 15. Qh5 {[%clk
0:02:40.3]} 15... Qh4+ {[%clk 0:02:17.9]} 16. Qxh4 {[%clk 0:02:39.2]} 16... Nxh4
{[%clk 0:02:18.8]} 17. g3 {[%clk 0:02:19]} 17... Nf5 {[%clk 0:02:17.8]} 18.
O-O-O {[%clk 0:02:05.2]} 18... Bxd6 {[%clk 0:02:16.1]} 19. exd6 {[%clk
0:02:03.8]} 19... Bb7 {[%clk 0:02:15.1]} 20. Rhe1 {[%clk 0:02:03.8]} 20... Rfd8
{[%clk 0:02:08.8]} 21. g4 {[%clk 0:01:59.1]} 21... Nh4 {[%clk 0:02:06.3]} 22.
Rf1 {[%clk 0:01:38.4]} 22... Rac8 {[%clk 0:01:58.4]} 23. c3 {[%clk 0:01:10]}
23... Nc5 {[%clk 0:01:54.4]} 24. Nxc5 {[%clk 0:01:07.8]} 24... Rxc5 {[%clk
0:01:55.3]} 25. f5 {[%clk 0:01:04.8]} 25... Rd5 {[%clk 0:01:48]} 26. fxe6 {[%clk
0:01:04.5]} 26... fxe6 {[%clk 0:01:48.9]} 27. Bc2 {[%clk 0:00:53]} 27... R5xd6
{[%clk 0:01:46.2]} 28. Rde1 {[%clk 0:00:53.3]} 28... Nf3 {[%clk 0:01:36.6]} 29.
Re2 {[%clk 0:00:49.5]} 29... h6 {[%clk 0:01:27.3]} 30. Bb3 {[%clk 0:00:49.1]}
30... Nd2 {[%clk 0:01:26.9]} 31. Rxd2 {[%clk 0:00:36.8]} 31... Rxd2 {[%clk
0:01:27.8]} 32. Bxe6+ {[%clk 0:00:37.5]} 32... Kh8 {[%clk 0:01:27.1]} 0-1